[Event "*** Titled Tuesday Blitz"]
[Site "Chess.com"]
[Date "2019.10.01"]
[Round "1"]
[White "GelmanAlexander"]
[Black "WiktoriaPOL"]
[Result "0-1"]
[WhiteElo "2496"]
[BlackElo "2289"]
[TimeControl "180+2"]
[EndTime "13:07:31 PDT"]
[Termination "WiktoriaPOL won by checkmate"]

1. e4 {[%clk 0:03:01.2]} 1... c5 {[%clk 0:03:00.4]} 2. b4 {[%clk 0:03:01.6]}
2... cxb4 {[%clk 0:02:58.1]} 3. a3 {[%clk 0:03:00.1]} 3... bxa3 {[%clk
0:02:58.4]} 4. d4 {[%clk 0:03:00.3]} 4... d6 {[%clk 0:02:56.9]} 5. Bd3 {[%clk
0:02:59.7]} 5... g6 {[%clk 0:02:55.9]} 6. c3 {[%clk 0:02:56.1]} 6... Bg7 {[%clk
0:02:56.4]} 7. f4 {[%clk 0:02:54.5]} 7... e6 {[%clk 0:02:51.2]} 8. Nf3 {[%clk
0:02:55]} 8... Ne7 {[%clk 0:02:51.6]} 9. O-O {[%clk 0:02:55.4]} 9... O-O {[%clk
0:02:51.4]} 10. Rxa3 {[%clk 0:02:54.9]} 10... Nbc6 {[%clk 0:02:50.5]} 11. Qe1
{[%clk 0:02:35.5]} 11... d5 {[%clk 0:02:49.8]} 12. e5 {[%clk 0:02:35.5]} 12...
a6 {[%clk 0:02:47.4]} 13. g4 {[%clk 0:02:13.5]} 13... Bd7 {[%clk 0:02:40.8]} 14.
Qh4 {[%clk 0:02:06.8]} 14... b5 {[%clk 0:02:26.2]} 15. Ra2 {[%clk 0:01:56.6]}
15... b4 {[%clk 0:02:22.4]} 16. Rg2 {[%clk 0:01:55.1]} 16... bxc3 {[%clk
0:02:21.4]} 17. f5 {[%clk 0:01:48.2]} 17... exf5 {[%clk 0:02:13.4]} 18. Bh6
{[%clk 0:01:25]} 18... fxg4 {[%clk 0:02:10]} 19. Ng5 {[%clk 0:01:25.8]} 19...
Bf5 {[%clk 0:01:39]} 20. Bxg7 {[%clk 0:01:24.7]} 20... h5 {[%clk 0:01:39.5]} 21.
Bxf8 {[%clk 0:00:57]} 21... Bxd3 {[%clk 0:01:39.2]} 22. Rxf7 {[%clk 0:00:28.6]}
22... Nf5 {[%clk 0:01:22.7]} 23. Rxf5 {[%clk 0:00:21.4]} 23... Bxf5 {[%clk
0:01:21.6]} 24. Bc5 {[%clk 0:00:21.8]} 24... Bxb1 {[%clk 0:01:20.2]} 25. Rxg4
{[%clk 0:00:17.4]} 25... c2 {[%clk 0:01:17.6]} 26. Ba3 {[%clk 0:00:18.3]} 26...
Qa5 {[%clk 0:00:59.4]} 27. Bc1 {[%clk 0:00:17.6]} 27... Rf8 {[%clk 0:00:52.9]}
28. Rg2 {[%clk 0:00:14.4]} 28... Ne7 {[%clk 0:00:39.3]} 29. Ne6 {[%clk
0:00:14.3]} 29... Rf7 {[%clk 0:00:38]} 30. Qxh5 {[%clk 0:00:08.4]} 30... Qe1#
{[%clk 0:00:37.6]} 0-1

[Event "*** Titled Tuesday Blitz"]
[Site "Chess.com"]
[Date "2019.10.01"]
[Round "1"]
[White "AndrewMcStone"]
[Black "TheLancer"]
[Result "0-1"]
[WhiteElo "2147"]
[BlackElo "2562"]
[TimeControl "180+2"]
[EndTime "13:07:36 PDT"]
[Termination "TheLancer won by checkmate"]

1. f4 {[%clk 0:02:57.5]} 1... d5 {[%clk 0:02:57.3]} 2. Nf3 {[%clk 0:02:58.1]}
2... c5 {[%clk 0:02:57.4]} 3. g3 {[%clk 0:02:59.6]} 3... Nf6 {[%clk 0:02:57.1]}
4. Bg2 {[%clk 0:03:00.9]} 4... Nc6 {[%clk 0:02:58.2]} 5. O-O {[%clk 0:03:02.3]}
5... Bg4 {[%clk 0:02:55.9]} 6. d3 {[%clk 0:02:58.5]} 6... d4 {[%clk 0:02:56.6]}
7. Na3 {[%clk 0:02:37.9]} 7... Nd5 {[%clk 0:02:56.5]} 8. Nc4 {[%clk 0:02:03]}
8... g6 {[%clk 0:02:33.5]} 9. Nce5 {[%clk 0:01:49.6]} 9... Bxf3 {[%clk
0:02:14.4]} 10. Nxc6 {[%clk 0:01:29.2]} 10... Bxe2 {[%clk 0:02:00.4]} 11. Nxd8
{[%clk 0:01:07.5]} 11... Bxd1 {[%clk 0:01:58.5]} 12. Nxf7 {[%clk 0:01:05.8]}
12... Kxf7 {[%clk 0:01:41]} 13. Bxd5+ {[%clk 0:00:57.3]} 13... e6 {[%clk
0:01:42.3]} 14. Bxe6+ {[%clk 0:00:57]} 14... Kxe6 {[%clk 0:01:42.6]} 15. Rxd1
{[%clk 0:00:58.5]} 15... Bd6 {[%clk 0:01:43.7]} 16. Re1+ {[%clk 0:00:58.2]}
16... Kd5 {[%clk 0:01:44.2]} 17. Bd2 {[%clk 0:00:58.7]} 17... Rac8 {[%clk
0:01:44.1]} 18. b3 {[%clk 0:00:56.8]} 18... b6 {[%clk 0:01:41.6]} 19. a4 {[%clk
0:00:57.5]} 19... a6 {[%clk 0:01:42.4]} 20. Re4 {[%clk 0:00:53.7]} 20... Rhf8
{[%clk 0:01:34.5]} 21. Rae1 {[%clk 0:00:51.3]} 21... b5 {[%clk 0:01:35.6]} 22.
axb5 {[%clk 0:00:51.3]} 22... axb5 {[%clk 0:01:37.5]} 23. Re6 {[%clk 0:00:40.3]}
23... Ra8 {[%clk 0:01:17.4]} 24. R6e2 {[%clk 0:00:15.4]} 24... Ra2 {[%clk
0:01:07.4]} 25. Rc1 {[%clk 0:00:16]} 25... Rfa8 {[%clk 0:01:05.5]} 26. Kg2
{[%clk 0:00:16.4]} 26... Rb2 {[%clk 0:00:59.9]} 27. Kf3 {[%clk 0:00:15]} 27...
Raa2 {[%clk 0:01:00.7]} 28. Be1 {[%clk 0:00:16.2]} 28... c4 {[%clk 0:00:57.9]}
29. bxc4+ {[%clk 0:00:16.4]} 29... bxc4 {[%clk 0:00:59.8]} 30. dxc4+ {[%clk
0:00:16.9]} 30... Kxc4 {[%clk 0:01:01.7]} 31. g4 {[%clk 0:00:16.1]} 31... Ra3+
{[%clk 0:01:00.9]} 32. Ke4 {[%clk 0:00:15.2]} 32... Rb8 {[%clk 0:00:49.2]} 33.
f5 {[%clk 0:00:05.1]} 33... Re8# {[%clk 0:00:49.9]} 0-1

[Event "*** Titled Tuesday Blitz"]
[Site "Chess.com"]
[Date "2019.10.01"]
[Round "1"]
[White "Keaton87"]
[Black "MendozaDavid2000"]
[Result "1-0"]
[WhiteElo "2613"]
[BlackElo "2242"]
[TimeControl "180+2"]
[EndTime "13:07:42 PDT"]
[Termination "Keaton87 won on time"]

1. d4 {[%clk 0:03:01.9]} 1... Nf6 {[%clk 0:02:57.3]} 2. Bg5 {[%clk 0:03:02.7]}
2... c5 {[%clk 0:02:57.2]} 3. Nc3 {[%clk 0:03:02.7]} 3... cxd4 {[%clk
0:02:53.2]} 4. Qxd4 {[%clk 0:03:04.6]} 4... Nc6 {[%clk 0:02:54.2]} 5. Qh4 {[%clk
0:03:05.3]} 5... e6 {[%clk 0:02:54.9]} 6. e4 {[%clk 0:03:05.9]} 6... Be7 {[%clk
0:02:52.5]} 7. O-O-O {[%clk 0:03:06.7]} 7... d6 {[%clk 0:02:51.9]} 8. f4 {[%clk
0:03:07.7]} 8... Qc7 {[%clk 0:02:41.8]} 9. Nf3 {[%clk 0:03:06.2]} 9... a6 {[%clk
0:02:42.3]} 10. Qe1 {[%clk 0:03:02]} 10... O-O {[%clk 0:02:35]} 11. e5 {[%clk
0:03:02.4]} 11... Ne8 {[%clk 0:02:29.9]} 12. Bxe7 {[%clk 0:02:46.9]} 12... Qxe7
{[%clk 0:02:23.5]} 13. Bd3 {[%clk 0:02:46.4]} 13... f5 {[%clk 0:02:15]} 14. exd6
{[%clk 0:02:37.3]} 14... Nxd6 {[%clk 0:02:09.7]} 15. Kb1 {[%clk 0:02:36.3]}
15... b5 {[%clk 0:02:08]} 16. Ne2 {[%clk 0:02:26.8]} 16... Bb7 {[%clk
0:01:56.8]} 17. Ned4 {[%clk 0:02:26.7]} 17... Rae8 {[%clk 0:01:46]} 18. Nxc6
{[%clk 0:02:19.9]} 18... Bxc6 {[%clk 0:01:43.5]} 19. Rf1 {[%clk 0:02:11.7]}
19... Be4 {[%clk 0:01:40]} 20. Ng5 {[%clk 0:02:01.8]} 20... Bxd3 {[%clk
0:01:31.8]} 21. Rxd3 {[%clk 0:01:56.3]} 21... h6 {[%clk 0:01:33.3]} 22. Nf3
{[%clk 0:01:53.1]} 22... Rc8 {[%clk 0:01:07.7]} 23. Qe2 {[%clk 0:01:36]} 23...
Nc4 {[%clk 0:00:57.8]} 24. Re1 {[%clk 0:01:33.3]} 24... Rfe8 {[%clk 0:00:56.5]}
25. Nd4 {[%clk 0:01:32.6]} 25... Qb4 {[%clk 0:00:50]} 26. c3 {[%clk 0:01:26.7]}
26... Qa5 {[%clk 0:00:09.6]} 27. Rg3 {[%clk 0:01:27.5]} 27... b4 {[%clk
0:00:10.6]} 28. Qh5 {[%clk 0:01:14]} 28... bxc3 {[%clk 0:00:10.9]} 29. Qg6
{[%clk 0:01:06.9]} 29... Na3+ {[%clk 0:00:11.3]} 30. bxa3 {[%clk 0:00:59.7]}
30... Qb6+ {[%clk 0:00:10.9]} 31. Nb3 {[%clk 0:00:56.7]} 31... c2+ {[%clk
0:00:09]} 32. Kc1 {[%clk 0:00:58]} 32... Rc7 {[%clk 0:00:07]} 33. Qxe8+ {[%clk
0:00:57.6]} 1-0

[Event "*** Titled Tuesday Blitz"]
[Site "Chess.com"]
[Date "2019.10.01"]
[Round "1"]
[White "Jumbo"]
[Black "r31415"]
[Result "1-0"]
[WhiteElo "2788"]
[BlackElo "2412"]
[TimeControl "180+2"]
[EndTime "13:07:50 PDT"]
[Termination "Jumbo won by resignation"]

1. d4 {[%clk 0:03:01.9]} 1... d6 {[%clk 0:03:01]} 2. c4 {[%clk 0:03:03.4]} 2...
f5 {[%clk 0:03:02.2]} 3. g3 {[%clk 0:03:04]} 3... Nf6 {[%clk 0:03:03.6]} 4. Bg2
{[%clk 0:03:04.9]} 4... g6 {[%clk 0:03:05.5]} 5. Nc3 {[%clk 0:03:05.6]} 5... Bg7
{[%clk 0:03:07]} 6. Nh3 {[%clk 0:03:06.9]} 6... O-O {[%clk 0:03:08.4]} 7. d5
{[%clk 0:03:08.3]} 7... c6 {[%clk 0:03:09.8]} 8. O-O {[%clk 0:03:09.1]} 8... e5
{[%clk 0:03:10.4]} 9. dxe6 {[%clk 0:03:07.8]} 9... Bxe6 {[%clk 0:03:11.4]} 10.
Qd3 {[%clk 0:03:03.1]} 10... Re8 {[%clk 0:03:02.7]} 11. Ng5 {[%clk 0:03:02.9]}
11... Nbd7 {[%clk 0:02:58.3]} 12. Nxe6 {[%clk 0:02:53.9]} 12... Rxe6 {[%clk
0:02:58.8]} 13. Qc2 {[%clk 0:02:51.7]} 13... Nc5 {[%clk 0:02:53.5]} 14. Rd1
{[%clk 0:02:52.1]} 14... Nfe4 {[%clk 0:02:34.8]} 15. Nxe4 {[%clk 0:02:47.5]}
15... Nxe4 {[%clk 0:02:35.8]} 16. Bf4 {[%clk 0:02:40.7]} 16... Qb6 {[%clk
0:02:06.5]} 17. Bxe4 {[%clk 0:02:32.8]} 17... Rxe4 {[%clk 0:02:04.3]} 18. Rxd6
{[%clk 0:02:31.9]} 18... Qxb2 {[%clk 0:01:55.5]} 19. Qxb2 {[%clk 0:02:22.1]}
19... Bxb2 {[%clk 0:01:56.1]} 20. Rb1 {[%clk 0:02:21.9]} 20... Rxe2 {[%clk
0:01:55.5]} 21. Kf1 {[%clk 0:02:14.2]} 21... Rc2 {[%clk 0:01:55.9]} 22. Rd2
{[%clk 0:02:11.7]} 22... Rxd2 {[%clk 0:01:54.8]} 23. Bxd2 {[%clk 0:02:13.6]}
23... Bd4 {[%clk 0:01:37.3]} 24. Rxb7 {[%clk 0:02:14.1]} 24... Bb6 {[%clk
0:01:27.5]} 25. Bc3 {[%clk 0:02:12.4]} 25... Rd8 {[%clk 0:01:18.3]} 26. Rg7+
{[%clk 0:02:09.8]} 26... Kf8 {[%clk 0:01:19.3]} 27. Rxh7 {[%clk 0:02:11]} 27...
Rd1+ {[%clk 0:01:20.8]} 28. Ke2 {[%clk 0:02:11.5]} 28... Rc1 {[%clk 0:01:17.2]}
29. Kd2 {[%clk 0:01:59]} 29... Rh1 {[%clk 0:01:14]} 30. f4 {[%clk 0:01:51.6]}
30... Bg1 {[%clk 0:01:09.1]} 31. h4 {[%clk 0:01:42.6]} 31... Bf2 {[%clk
0:00:53.9]} 32. Be5 {[%clk 0:01:34.2]} 32... Rh2 {[%clk 0:00:40.7]} 33. Kd3
{[%clk 0:01:31.9]} 33... Bb6 {[%clk 0:00:36.2]} 34. Rg7 {[%clk 0:01:27.1]} 34...
Rxa2 {[%clk 0:00:17.5]} 35. Rxg6 {[%clk 0:01:26.7]} 35... Ke7 {[%clk 0:00:13.7]}
36. h5 {[%clk 0:01:26.8]} 36... Ra3+ {[%clk 0:00:05.6]} 37. Kc2 {[%clk
0:01:26.7]} 37... Ra2+ {[%clk 0:00:03.5]} 38. Kb3 {[%clk 0:01:27.5]} 38... Rf2
{[%clk 0:00:02.9]} 39. h6 {[%clk 0:01:27.8]} 39... Rh2 {[%clk 0:00:03.6]} 40.
Rg7+ {[%clk 0:01:27.4]} 40... Ke6 {[%clk 0:00:04.3]} 41. h7 {[%clk 0:01:28.8]}
41... Bc5 {[%clk 0:00:03.4]} 42. Rc7 {[%clk 0:01:28.4]} 42... Bb6 {[%clk
0:00:03.3]} 43. Rb7 {[%clk 0:01:24.1]} 43... Rh3 {[%clk 0:00:03.2]} 44. h8=Q
{[%clk 0:01:24.6]} 44... Rxg3+ {[%clk 0:00:05.1]} 1-0

[Event "*** Titled Tuesday Blitz"]
[Site "Chess.com"]
[Date "2019.10.01"]
[Round "1"]
[White "Misha_Bilous"]
[Black "beccrajoy"]
[Result "1-0"]
[WhiteElo "2509"]
[BlackElo "1775"]
[TimeControl "180+2"]
[EndTime "13:07:51 PDT"]
[Termination "Misha_Bilous won by resignation"]

1. d4 {[%clk 0:03:00.3]} 1... d5 {[%clk 0:03:00.5]} 2. c4 {[%clk 0:03:01.6]}
2... c6 {[%clk 0:03:01]} 3. e3 {[%clk 0:03:02.3]} 3... Nf6 {[%clk 0:03:00]} 4.
Nf3 {[%clk 0:03:03.6]} 4... e6 {[%clk 0:03:00.3]} 5. b3 {[%clk 0:03:04.2]} 5...
g6 {[%clk 0:02:56.5]} 6. Bb2 {[%clk 0:03:05.1]} 6... Bg7 {[%clk 0:02:57.9]} 7.
Nbd2 {[%clk 0:03:06.6]} 7... O-O {[%clk 0:02:59]} 8. Bd3 {[%clk 0:03:08.2]} 8...
Nbd7 {[%clk 0:02:55.3]} 9. O-O {[%clk 0:03:09.6]} 9... c5 {[%clk 0:02:56.7]} 10.
cxd5 {[%clk 0:03:05.1]} 10... Nxd5 {[%clk 0:02:53.6]} 11. Qe2 {[%clk 0:02:54.3]}
11... cxd4 {[%clk 0:02:50.7]} 12. Nxd4 {[%clk 0:02:45.9]} 12... Nc5 {[%clk
0:02:40.8]} 13. Bc4 {[%clk 0:02:44.1]} 13... Nb6 {[%clk 0:02:34.5]} 14. Rfd1
{[%clk 0:02:39.1]} 14... Nxc4 {[%clk 0:02:33.4]} 15. Nxc4 {[%clk 0:02:40.4]}
15... Qg5 {[%clk 0:02:26.5]} 16. Nf3 {[%clk 0:02:28.9]} 16... Qh5 {[%clk
0:02:12.8]} 17. Bxg7 {[%clk 0:02:29.2]} 17... Kxg7 {[%clk 0:02:11.3]} 18. Nd6
{[%clk 0:02:20.8]} 18... e5 {[%clk 0:01:55.7]} 19. b4 {[%clk 0:01:42.6]} 19...
e4 {[%clk 0:01:52.6]} 20. bxc5 {[%clk 0:01:26.5]} 20... exf3 {[%clk 0:01:50.2]}
21. gxf3 {[%clk 0:01:14.8]} 21... Qxc5 {[%clk 0:01:45.5]} 22. Ne4 {[%clk
0:01:06.6]} 22... Qe7 {[%clk 0:01:28.7]} 23. Qb2+ {[%clk 0:01:03.2]} 23... f6
{[%clk 0:01:20.6]} 24. Rd2 {[%clk 0:00:38.5]} 24... Bf5 {[%clk 0:01:19.8]} 25.
Rad1 {[%clk 0:00:35]} 25... b6 {[%clk 0:00:50.6]} 26. Ng3 {[%clk 0:00:24]} 26...
Bh3 {[%clk 0:00:36.8]} 27. Qd4 {[%clk 0:00:23.3]} 27... Rf7 {[%clk 0:00:27.9]}
28. Qh4 {[%clk 0:00:19.4]} 28... Be6 {[%clk 0:00:21.4]} 29. Qe4 {[%clk
0:00:20.8]} 29... f5 {[%clk 0:00:19.7]} 30. Qxa8 {[%clk 0:00:20]} 1-0

[Event "*** Titled Tuesday Blitz"]
[Site "Chess.com"]
[Date "2019.10.01"]
[Round "1"]
[White "Sjakkerntobi"]
[Black "GLeruste"]
[Result "1/2-1/2"]
[WhiteElo "2038"]
[BlackElo "2510"]
[TimeControl "180+2"]
[EndTime "13:07:55 PDT"]
[Termination "Game drawn by repetition"]

1. e4 {[%clk 0:03:01.9]} 1... d5 {[%clk 0:03:01.2]} 2. exd5 {[%clk 0:03:02.5]}
2... Qxd5 {[%clk 0:03:03.1]} 3. Nc3 {[%clk 0:03:04.2]} 3... Qd8 {[%clk
0:03:04.1]} 4. Bc4 {[%clk 0:03:04.4]} 4... c6 {[%clk 0:03:04.9]} 5. Nf3 {[%clk
0:03:01.5]} 5... Bf5 {[%clk 0:03:05.5]} 6. O-O {[%clk 0:03:01.7]} 6... e6 {[%clk
0:03:06.8]} 7. d4 {[%clk 0:03:01.2]} 7... Nd7 {[%clk 0:03:07.7]} 8. Bf4 {[%clk
0:02:59.3]} 8... Ngf6 {[%clk 0:03:07.8]} 9. Re1 {[%clk 0:02:55.5]} 9... Be7
{[%clk 0:03:08.5]} 10. Nh4 {[%clk 0:02:51.5]} 10... Bg6 {[%clk 0:03:08.9]} 11.
Nxg6 {[%clk 0:02:50.6]} 11... hxg6 {[%clk 0:03:10.8]} 12. h3 {[%clk 0:02:52.3]}
12... Nb6 {[%clk 0:03:10.6]} 13. Bb3 {[%clk 0:02:52.6]} 13... Nbd5 {[%clk
0:03:11.8]} 14. Nxd5 {[%clk 0:02:52.4]} 14... cxd5 {[%clk 0:03:04]} 15. c4
{[%clk 0:02:52.2]} 15... dxc4 {[%clk 0:02:59.7]} 16. Bxc4 {[%clk 0:02:49.6]}
16... O-O {[%clk 0:03:00.9]} 17. Rc1 {[%clk 0:02:42.1]} 17... Nd5 {[%clk
0:02:52.9]} 18. Be5 {[%clk 0:02:39]} 18... Rc8 {[%clk 0:02:49.5]} 19. Qb3 {[%clk
0:02:31]} 19... Qd7 {[%clk 0:02:22.1]} 20. Qb5 {[%clk 0:01:57.4]} 20... Qxb5
{[%clk 0:02:19.3]} 21. Bxb5 {[%clk 0:01:59.3]} 21... Rfd8 {[%clk 0:02:09.1]} 22.
a3 {[%clk 0:01:47.9]} 22... a6 {[%clk 0:02:09.4]} 23. Bd3 {[%clk 0:01:46.6]}
23... Kf8 {[%clk 0:02:03.5]} 24. Kf1 {[%clk 0:01:46.9]} 24... Bf6 {[%clk
0:02:00.1]} 25. Be4 {[%clk 0:01:44]} 25... b5 {[%clk 0:01:51]} 26. Bxd5 {[%clk
0:01:13.8]} 26... exd5 {[%clk 0:01:50.9]} 27. Bxf6 {[%clk 0:01:14.1]} 27... gxf6
{[%clk 0:01:51.2]} 28. Ke2 {[%clk 0:01:15.7]} 28... Re8+ {[%clk 0:01:50.7]} 29.
Kd3 {[%clk 0:01:15.7]} 29... Rc4 {[%clk 0:01:44.7]} 30. Rxe8+ {[%clk 0:01:14.3]}
30... Kxe8 {[%clk 0:01:46.2]} 31. Re1+ {[%clk 0:01:15.4]} 31... Kd7 {[%clk
0:01:46.8]} 32. b3 {[%clk 0:01:15.1]} 32... Rc6 {[%clk 0:01:47.5]} 33. Kd2
{[%clk 0:01:06.8]} 33... Rc8 {[%clk 0:01:45.6]} 34. Rc1 {[%clk 0:01:07.3]} 34...
Rh8 {[%clk 0:01:40]} 35. Rc5 {[%clk 0:01:05]} 35... Kd6 {[%clk 0:01:40.8]} 36.
Kd3 {[%clk 0:01:05.6]} 36... Re8 {[%clk 0:01:39.8]} 37. Rc1 {[%clk 0:01:05.3]}
37... f5 {[%clk 0:01:37.2]} 38. f3 {[%clk 0:01:04.6]} 38... f4 {[%clk
0:01:36.4]} 39. Kd2 {[%clk 0:01:02.8]} 39... Re3 {[%clk 0:01:34.7]} 40. Rc3
{[%clk 0:01:02.1]} 40... Rxc3 {[%clk 0:01:29.6]} 41. Kxc3 {[%clk 0:01:04]} 41...
a5 {[%clk 0:01:31]} 42. b4 {[%clk 0:01:05]} 42... a4 {[%clk 0:01:32.1]} 43. Kd3
{[%clk 0:01:05.5]} 43... Ke6 {[%clk 0:01:33.3]} 44. Ke2 {[%clk 0:01:06.6]} 44...
Kf5 {[%clk 0:01:32.3]} 45. Kf2 {[%clk 0:01:07.9]} 45... Kg5 {[%clk 0:01:32.7]}
46. Kf1 {[%clk 0:01:08.5]} 46... Kh4 {[%clk 0:01:33.6]} 47. Kf2 {[%clk
0:01:09.8]} 47... g5 {[%clk 0:01:31.4]} 48. Kg1 {[%clk 0:01:07.5]} 48... Kg3
{[%clk 0:01:32.5]} 49. Kf1 {[%clk 0:01:08.4]} 49... f5 {[%clk 0:01:29.3]} 50.
Kg1 {[%clk 0:01:09.6]} 50... g4 {[%clk 0:01:28.2]} 51. hxg4 {[%clk 0:01:10.7]}
51... fxg4 {[%clk 0:01:29.3]} 52. fxg4 {[%clk 0:01:12.6]} 52... Kxg4 {[%clk
0:01:30.1]} 53. Kf2 {[%clk 0:01:14.5]} 53... Kg5 {[%clk 0:01:30.8]} 54. Ke2
{[%clk 0:01:09.9]} 54... Kf6 {[%clk 0:01:29.8]} 55. Kf2 {[%clk 0:01:09.6]} 55...
Kf5 {[%clk 0:01:28.3]} 56. Kf3 {[%clk 0:01:10]} 56... Kg5 {[%clk 0:01:29.4]} 57.
g3 {[%clk 0:01:10.7]} 57... fxg3 {[%clk 0:01:30.4]} 58. Kxg3 {[%clk 0:01:12.6]}
58... Kf5 {[%clk 0:01:31.5]} 59. Kf3 {[%clk 0:01:14]} 59... Kg5 {[%clk
0:01:32.7]} 60. Kg3 {[%clk 0:01:15.3]} 60... Kf5 {[%clk 0:01:34.1]} 61. Kf3
{[%clk 0:01:16.9]} 61... Kg5 {[%clk 0:01:35.5]} 62. Kg3 {[%clk 0:01:18.4]}
1/2-1/2

[Event "*** Titled Tuesday Blitz"]
[Site "Chess.com"]
[Date "2019.10.01"]
[Round "1"]
[White "mbojan"]
[Black "aquaticpineapples"]
[Result "1-0"]
[WhiteElo "2553"]
[BlackElo "2127"]
[TimeControl "180+2"]
[EndTime "13:08:09 PDT"]
[Termination "mbojan won by resignation"]

1. e4 {[%clk 0:03:00.7]} 1... e6 {[%clk 0:01:21.4]} 2. d4 {[%clk 0:02:59.3]}
2... d5 {[%clk 0:01:22.3]} 3. Nc3 {[%clk 0:03:00.2]} 3... Bb4 {[%clk 0:01:22.6]}
4. e5 {[%clk 0:03:00.5]} 4... c5 {[%clk 0:01:23.5]} 5. Bd2 {[%clk 0:03:00.7]}
5... Bd7 {[%clk 0:01:20]} 6. Qg4 {[%clk 0:02:55.8]} 6... Ne7 {[%clk 0:01:17.7]}
7. Nf3 {[%clk 0:02:53.4]} 7... cxd4 {[%clk 0:01:16.5]} 8. Nxd4 {[%clk
0:02:51.9]} 8... O-O {[%clk 0:01:11.1]} 9. Bd3 {[%clk 0:02:49.6]} 9... Ng6
{[%clk 0:01:09]} 10. f4 {[%clk 0:02:16]} 10... f5 {[%clk 0:01:01]} 11. Qg3
{[%clk 0:02:07.4]} 11... Qh4 {[%clk 0:00:56.2]} 12. Qxh4 {[%clk 0:01:54.9]}
12... Nxh4 {[%clk 0:00:58.1]} 13. Kf2 {[%clk 0:01:56.4]} 13... Bc5 {[%clk
0:00:53]} 14. Ne2 {[%clk 0:01:56.2]} 14... Nc6 {[%clk 0:00:52.4]} 15. c3 {[%clk
0:01:56.9]} 15... Rac8 {[%clk 0:00:51.1]} 16. Be3 {[%clk 0:01:55.5]} 16... Nxd4
{[%clk 0:00:48]} 17. Bxd4 {[%clk 0:01:33.5]} 17... Be7 {[%clk 0:00:41.2]} 18. g3
{[%clk 0:01:33.6]} 18... Ng6 {[%clk 0:00:40.2]} 19. Bxa7 {[%clk 0:01:27.6]}
19... b6 {[%clk 0:00:33.4]} 20. Bxb6 {[%clk 0:01:09.1]} 20... Rb8 {[%clk
0:00:34.3]} 21. Bd4 {[%clk 0:01:06.6]} 21... Rxb2 {[%clk 0:00:34.5]} 22. c4
{[%clk 0:01:05.1]} 22... Rb4 {[%clk 0:00:25.1]} 23. cxd5 {[%clk 0:01:06]} 23...
exd5 {[%clk 0:00:21]} 24. Rhb1 {[%clk 0:01:04.1]} 24... Rfb8 {[%clk 0:00:20.5]}
25. Rxb4 {[%clk 0:01:05.1]} 25... Rxb4 {[%clk 0:00:21.3]} 26. Ke3 {[%clk
0:01:06.4]} 26... Nf8 {[%clk 0:00:20.5]} 27. Rb1 {[%clk 0:01:03.8]} 27... Ra4
{[%clk 0:00:18]} 28. Rb7 {[%clk 0:00:57.8]} 28... Rxa2 {[%clk 0:00:14.8]} 29. e6
{[%clk 0:00:59]} 29... Nxe6 {[%clk 0:00:08.3]} 30. Rxd7 {[%clk 0:00:57.2]} 30...
Bb4 {[%clk 0:00:05.7]} 31. Rxd5 {[%clk 0:00:32.8]} 31... Bd2+ {[%clk 0:00:04.7]}
32. Kf3 {[%clk 0:00:33.9]} 32... Bb4 {[%clk 0:00:05]} 33. Be3 {[%clk 0:00:31.1]}
33... Kf8 {[%clk 0:00:03.6]} 34. Rxf5+ {[%clk 0:00:30.6]} 34... Ke7 {[%clk
0:00:03.9]} 35. Re5 {[%clk 0:00:32]} 35... Kd7 {[%clk 0:00:04.8]} 36. Rxe6
{[%clk 0:00:33.5]} 36... Kxe6 {[%clk 0:00:05.1]} 37. Bc4+ {[%clk 0:00:34.8]}
37... Kf5 {[%clk 0:00:06.7]} 38. Bxa2 {[%clk 0:00:36.7]} 38... Bd6 {[%clk
0:00:07.9]} 39. g4+ {[%clk 0:00:37.7]} 1-0

[Event "*** Titled Tuesday Blitz"]
[Site "Chess.com"]
[Date "2019.10.01"]
[Round "1"]
[White "Sanan_Sjugirov"]
[Black "harvsp123"]
[Result "1-0"]
[WhiteElo "2948"]
[BlackElo "2477"]
[TimeControl "180+2"]
[EndTime "13:08:13 PDT"]
[Termination "Sanan_Sjugirov won by resignation"]

1. e4 {[%clk 0:03:01.9]} 1... c5 {[%clk 0:03:00.7]} 2. Nf3 {[%clk 0:03:02.2]}
2... d6 {[%clk 0:03:00.8]} 3. d4 {[%clk 0:03:00.4]} 3... cxd4 {[%clk 0:03:02.7]}
4. Nxd4 {[%clk 0:03:02.2]} 4... Nf6 {[%clk 0:03:01.9]} 5. Nc3 {[%clk 0:03:02.7]}
5... a6 {[%clk 0:03:02.8]} 6. Be3 {[%clk 0:03:00.7]} 6... e5 {[%clk 0:03:03.5]}
7. Nf3 {[%clk 0:03:01.3]} 7... Be7 {[%clk 0:03:02]} 8. Bc4 {[%clk 0:03:01.1]}
8... O-O {[%clk 0:03:01.5]} 9. O-O {[%clk 0:03:00.9]} 9... Nc6 {[%clk
0:03:02.9]} 10. Qe2 {[%clk 0:02:59.4]} 10... Na5 {[%clk 0:03:00.1]} 11. Bb3
{[%clk 0:02:58.1]} 11... Bd7 {[%clk 0:02:55.1]} 12. Rfd1 {[%clk 0:02:55.8]}
12... Nxb3 {[%clk 0:02:43.4]} 13. cxb3 {[%clk 0:02:56.5]} 13... b5 {[%clk
0:02:30]} 14. Bg5 {[%clk 0:02:52.2]} 14... Nh5 {[%clk 0:02:00.5]} 15. Bxe7
{[%clk 0:02:00.3]} 15... Qxe7 {[%clk 0:02:02.4]} 16. Nd5 {[%clk 0:02:01.3]}
16... Qd8 {[%clk 0:01:56]} 17. Nxe5 {[%clk 0:01:59.1]} 17... dxe5 {[%clk
0:01:46.3]} 18. Qxh5 {[%clk 0:01:59.1]} 18... Re8 {[%clk 0:01:34.7]} 19. Rac1
{[%clk 0:01:59.3]} 19... Rc8 {[%clk 0:01:25.3]} 20. Rxc8 {[%clk 0:01:53.4]}
20... Bxc8 {[%clk 0:01:27.2]} 21. h3 {[%clk 0:01:39.4]} 21... Bb7 {[%clk
0:01:16.7]} 22. Ne3 {[%clk 0:01:36.3]} 22... Qf6 {[%clk 0:01:08.7]} 23. Qg4
{[%clk 0:01:31.6]} 23... g6 {[%clk 0:01:01.8]} 24. Qd7 {[%clk 0:01:27.2]} 24...
Qe7 {[%clk 0:00:56.2]} 25. Qxe7 {[%clk 0:01:28.1]} 25... Rxe7 {[%clk 0:00:58.1]}
26. f3 {[%clk 0:01:29.6]} 26... Rc7 {[%clk 0:00:54.1]} 27. b4 {[%clk 0:01:27.2]}
27... Kf8 {[%clk 0:00:54.3]} 28. Rd6 {[%clk 0:01:15.8]} 28... Rc1+ {[%clk
0:00:27.4]} 29. Kh2 {[%clk 0:01:11.4]} 29... Rc6 {[%clk 0:00:18.1]} 30. Rxc6
{[%clk 0:01:06.5]} 30... Bxc6 {[%clk 0:00:19]} 31. Ng4 {[%clk 0:01:07.7]} 31...
Bd7 {[%clk 0:00:16.6]} 32. Nxe5 {[%clk 0:01:08.2]} 32... Be6 {[%clk 0:00:18.5]}
33. a3 {[%clk 0:01:08.8]} 33... Ke7 {[%clk 0:00:20]} 34. Kg3 {[%clk 0:01:07.5]}
34... Kd6 {[%clk 0:00:21.5]} 35. Nd3 {[%clk 0:01:08.6]} 35... f5 {[%clk
0:00:22.7]} 36. Kf4 {[%clk 0:01:06.2]} 36... fxe4 {[%clk 0:00:22.9]} 37. fxe4
{[%clk 0:01:08.1]} 37... Bc8 {[%clk 0:00:23.1]} 38. Ke3 {[%clk 0:01:05.5]} 38...
h6 {[%clk 0:00:22.8]} 39. h4 {[%clk 0:01:05.9]} 39... g5 {[%clk 0:00:23.5]} 40.
hxg5 {[%clk 0:01:07]} 40... hxg5 {[%clk 0:00:25.4]} 41. g3 {[%clk 0:01:08]}
41... Ke6 {[%clk 0:00:26.2]} 42. Kd4 {[%clk 0:01:09.9]} 42... Kf6 {[%clk
0:00:26]} 43. Nc5 {[%clk 0:01:06.3]} 43... g4 {[%clk 0:00:26.5]} 44. Ke3 {[%clk
0:01:05.7]} 44... Ke5 {[%clk 0:00:27]} 45. Nd3+ {[%clk 0:01:06.6]} 45... Kd6
{[%clk 0:00:27.4]} 46. Kf4 {[%clk 0:01:08]} 46... Be6 {[%clk 0:00:28.4]} 47. Nf2
{[%clk 0:01:08.5]} 1-0